fUST/lending_fUST_20260217
["ID","MTS","AMOUNT","RATE_DAILY","PERIOD"]
[405798725,1771322952792,-500.0,0.00014471,2]
[405798726,1771322952812,-500.0,0.00014471,2]
[405798727,1771322952833,-500.0,0.00014471,2]
[405798728,1771322952854,-500.0,0.00014471,2]
[405798729,1771322952875,-500.0,0.00014471,2]
[405798730,1771322952895,-500.0,0.00014471,2]
[405798731,1771322952919,-500.0,0.00014471,2]
[405798732,1771322952939,-4151.39027556,0.00014471,2]
[405798733,1771322952958,-370.36498494,0.00014474,2]
[405798734,1771322952977,-666.65697289,0.00014474,2]
[405798735,1771322953094,-1185.1679518,0.00014474,2]
[405798736,1771322953114,-1851.82492468,0.00014474,2]
[405798737,1771322953133,-2666.62789155,0.00014474,2]
[405798738,1771322953152,-3629.57685238,0.00014474,2]
[405798739,1771322953170,-4740.67180719,0.00014474,2]
[405798740,1771322953190,-1556.71070825,0.00014474,2]
[405798741,1771322953338,-4437.20213497,0.00014474,2]
[405798742,1771322953358,-952.0196634,0.00014576,2]
[405798743,1771322953377,-22672.0543985,0.00014576,2]
[405798744,1771322953397,-800.0,0.00014879,2]
[405798745,1771322953415,-270.12774819,0.000149,2]
[405798746,1771322953434,-369.56429919,0.0001492,2]
[405798747,1771322953453,-41910.33414186,0.00015,2]
[405798754,1771323031570,-512.83911223,0.0001448,2]
[405798755,1771323031580,-800.0,0.00014816,2]
[405798756,1771323031590,-515.35360251,0.00014984,2]
[405798757,1771323031600,-300.0,0.00014999,2]
[405798758,1771323031609,-3236.26701028,0.00015,2]
[405798828,1771323037698,-7180.21953107,0.00015,2]
[405799358,1771323043110,-131.03810136,0.00015,2]
[405800194,1771323086751,500.0,0.00013273,2]
[405800195,1771323086793,1000.0,0.00013821,2]
[405800196,1771323178556,2021.8031324,0.00013996,2]
[405800197,1771323236852,257.7583094,0.0001397,2]
[405800204,1771323247202,477.88579833,0.00013273,2]
[405800227,1771323315866,500.0,0.00013273,2]
[405800228,1771323315941,1000.0,0.00013821,2]
[405800230,1771323384934,466.78944837,0.00013273,2]
[405800339,1771323682022,244.67,0.00012329,2]
[405800340,1771323692335,203.89,0.00012329,2]
[405800341,1771323692372,500.0,0.00013273,2]
[405800342,1771323692411,1000.0,0.00013821,2]
[405800343,1771323702715,169.91,0.00012329,2]
[405800344,1771323713130,849.55,0.00012329,2]
[405800392,1771323916604,500.0,0.00013273,2]
[405800393,1771323916689,1000.0,0.00013821,2]
[405800433,1771324044099,-426.87665308,0.00014368,2]
[405800434,1771324048121,-1073.12334692,0.00014368,2]
[405800435,1771324048141,-244.24,0.00014368,2]
[405800436,1771324048163,-265.66143837,0.00014394,2]
[405800437,1771324048183,-957.81004467,0.00014521,2]
[405800476,1771324159124,-689.13990431,0.0001452,2]
[405800584,1771324238016,-2000.0,0.00014509,2]
[405800586,1771324238025,-2074.0,0.00014509,2]
[405800588,1771324238035,-607.0911103,0.00014509,2]
[405800590,1771324238045,-524.86244196,0.0001452,2]
[405800592,1771324238054,-260.3482096,0.00014521,2]
[405800594,1771324238062,-366.72879645,0.00014596,2]
[405800596,1771324238074,-419.11862452,0.00014596,2]
[405800598,1771324238083,-654.21797796,0.00014596,2]
[405800600,1771324238093,-1200.0,0.00014615,2]
[405800602,1771324238102,-151.0,0.00014615,2]
[405800604,1771324238111,-174.61919141,0.00014615,2]
[405800606,1771324238120,-167.64096528,0.00014615,2]
[405800608,1771324238129,-277.60413244,0.00014615,2]
[405800610,1771324238139,-181.08010149,0.00014615,2]
[405800612,1771324238149,-187.78006525,0.00014615,2]
[405800614,1771324238158,-194.72792766,0.00014615,2]
[405800616,1771324238167,-122.53688318,0.00014615,2]
[405800640,1771324238402,-79.39597781,0.00014615,2]
[405800642,1771324238411,-250.0,0.00014615,2]
[405800644,1771324238421,-208.03476142,0.00014615,2]
[405800923,1771324241364,-576.31498111,0.00014615,2]
[405801891,1771324266866,500.0,0.00013273,2]
[405801892,1771324266906,1000.0,0.00013821,2]
[405801893,1771324300814,-1012.96938194,0.00014368,2]
[405801894,1771324300846,-235.0,0.00014469,2]
[405801895,1771324300879,-312.75002168,0.00014474,2]
[405801896,1771324300903,-1012.96938194,0.00014515,2]
[405801897,1771324300916,-235.0,0.00014515,2]
[405801898,1771324300929,-312.75002168,0.00014515,2]
[405801899,1771324300947,-302.44461463,0.00014515,2]
[405801900,1771324308868,-1990.16613507,0.00014515,2]
[405801901,1771324308889,-357.42859621,0.0001457,2]
[405801902,1771324308909,-300.0,0.00014614,2]
[405801903,1771324308928,-1215.65025747,0.00014615,2]
[405801904,1771324308949,-209.40437684,0.00014615,2]
[405801905,1771324308969,-250.0,0.00014615,2]
[405801906,1771324308989,-2000.0,0.00014615,2]
[405801907,1771324309011,-217.15233878,0.00014615,2]
[405801908,1771324309031,-250.0,0.00014615,2]
[405801909,1771324309051,-2000.0,0.00014615,2]
[405801910,1771324309071,-225.18697532,0.00014615,2]
[405801911,1771324309090,-985.01132031,0.00014615,2]
[405801955,1771324828327,4207.46613069,0.00014,2]
[405801959,1771324902617,511.3123437,0.0001349,2]
[405801971,1771325015631,271.1110639,0.00013395,2]
[405801992,1771325249536,1370.2688399,0.00013285,2]
[405802003,1771325346107,-150.0,0.00014121,2]
[405802004,1771325346127,-150.0,0.00014121,2]
[405802005,1771325346148,-150.0,0.00014121,2]
[405802006,1771325346169,-138.0,0.00014122,2]
[405802007,1771325348118,-12.0,0.00014122,2]
[405802008,1771325348139,-150.0,0.00014176,2]
[405802009,1771325348160,-266.17473884,0.00014176,2]
[405802010,1771325348182,-213.86844151,0.00014176,2]
[405802011,1771325348204,-220.6113899,0.00014177,2]
[405802012,1771325348225,-150.0,0.00014231,2]
[405802013,1771325348247,-255.14124541,0.0001428,2]
[405802014,1771325348268,-300.0,0.00014284,2]
[405802015,1771325348290,-150.0,0.00014285,2]
[405802016,1771325348311,-816.41362604,0.00014285,2]
[405802017,1771325350194,-1096.0514533,0.0001424,2]
[405802018,1771325351102,-3751.36911933,0.0001424,2]
[405802019,1771325351123,-10971.12677368,0.00014285,2]
[405802020,1771325358104,-37253.40132417,0.00014285,2]
[405802586,1771325443330,-959.05827611,0.00014285,2]
[405802588,1771325443339,-250.0384205,0.00014313,2]
[405802590,1771325443348,-1200.0,0.00014339,2]
[405802592,1771325443357,-300.0,0.0001434,2]
[405802594,1771325443367,-300.0,0.0001434,2]
[405802596,1771325443376,-300.0,0.0001434,2]
[405802598,1771325443386,-300.0,0.0001434,2]
[405802600,1771325443394,-300.0,0.0001434,2]
[405802602,1771325443403,-150.0,0.0001434,2]
[405802604,1771325443412,-505.45409477,0.00014341,2]
[405802606,1771325443421,-500.0,0.00014341,2]
[405802608,1771325443431,-500.0,0.00014341,2]
[405802610,1771325443440,-500.0,0.00014341,2]
[405802612,1771325443449,-500.0,0.00014341,2]
[405802614,1771325443461,-404.49473509,0.00014341,2]
[405803243,1771325538576,238.61,0.00012329,2]
[405803244,1771325545421,500.0,0.00012977,2]
[405803245,1771325548286,221.90236218,0.00012983,2]
[405803246,1771325548944,198.84,0.00012329,2]
[405803247,1771325551399,2363.1316345,0.00014,2]
[405803248,1771325559327,165.7,0.00012329,2]
[405803249,1771325569697,828.55,0.00012329,2]
[405803251,1771325736516,1992.02724177,0.00014,2]
[405803258,1771326096979,557.9236994,0.00013848,2]
[405803259,1771326101286,-245.03765209,0.00014145,2]
[405803260,1771326101312,-208.59521293,0.00014185,2]
[405803261,1771326101339,-272.32249331,0.00014185,2]
[405803262,1771326188619,228.58896965,0.00013848,2]
[405803278,1771326385190,6703.704824,0.00013293,2]
[405803279,1771326397099,-250.0,0.00014066,2]
[405803280,1771326397120,-243.13689905,0.00014172,2]
[405803281,1771326397139,-300.0,0.00014277,2]
[405803282,1771326397160,-300.0,0.00014277,2]
[405803283,1771326397182,-500.0,0.00014278,2]
[405803284,1771326397204,-500.0,0.00014278,2]
[405803285,1771326397224,-500.0,0.00014278,2]
[405803286,1771326397243,-337.49244502,0.00014278,2]
[405803287,1771326397261,-500.0,0.00014278,2]
[405803288,1771326397280,-216.0160532,0.00014278,2]
[405803318,1771326557104,-1002.20363851,0.00014178,2]
[405803319,1771326573087,-606.74630451,0.00014178,2]
[405803333,1771326632088,-574.14555002,0.00014178,2]
[405803876,1771326638178,-3818.60575026,0.00014178,2]
[405803877,1771326638188,-400.0,0.00014276,2]
[405803878,1771326638197,-300.0,0.00014277,2]
[405803879,1771326638207,-300.0,0.00014277,2]
[405803880,1771326638217,-300.0,0.00014277,2]
[405803881,1771326638227,-52.17065447,0.00014277,2]
[405803882,1771326638239,-247.82934553,0.00014277,2]
[405803883,1771326638248,-300.0,0.00014277,2]
[405803884,1771326638258,-17119.33998255,0.00014278,2]
[405803885,1771326638285,-32880.66001745,0.00014278,2]
[405803886,1771326638295,-283.9839468,0.00014278,2]
[405803887,1771326638304,-500.0,0.00014278,2]
[405803888,1771326638314,-339.55111009,0.00014278,2]
[405803889,1771326638323,-500.0,0.00014278,2]
[405803890,1771326638334,-500.0,0.00014278,2]
[405803891,1771326638344,-500.0,0.00014278,2]
[405803892,1771326638354,-500.0,0.00014278,2]
[405803893,1771326638364,-500.0,0.00014278,2]
[405803894,1771326638374,-500.0,0.00014278,2]
[405803895,1771326638384,-500.0,0.00014278,2]
[405803896,1771326638394,-500.0,0.00014278,2]
[405803897,1771326638403,-500.0,0.00014278,2]
[405803898,1771326638414,-500.0,0.00014278,2]
[405803899,1771326638424,-500.0,0.00014278,2]
[405803900,1771326638433,-167.82101085,0.00014278,2]
[405803901,1771326638444,-500.0,0.00014278,2]
[405803902,1771326638454,-500.0,0.00014278,2]
[405803904,1771326638465,-500.0,0.00014278,2]
[405803906,1771326638474,-500.0,0.00014278,2]
[405803908,1771326638484,-500.0,0.00014278,2]
[405803910,1771326638494,-500.0,0.00014278,2]
[405803912,1771326638505,-500.0,0.00014278,2]
[405803914,1771326638514,-500.0,0.00014278,2]
[405803916,1771326638526,-500.0,0.00014278,2]
[405803918,1771326638541,-500.0,0.00014278,2]
[405803920,1771326638550,-500.0,0.00014278,2]
[405803922,1771326638559,-500.0,0.00014278,2]
[405803924,1771326638569,-500.0,0.00014278,2]
[405803926,1771326638579,-500.0,0.00014278,2]
[405803928,1771326638589,-500.0,0.00014278,2]
[405803930,1771326638598,-500.0,0.00014278,2]
[405803932,1771326638608,-500.0,0.00014278,2]
[405803934,1771326638617,-500.0,0.00014278,2]
[405803936,1771326638627,-500.0,0.00014278,2]
[405803938,1771326638636,-500.0,0.00014278,2]
[405803940,1771326638648,-500.0,0.00014278,2]
[405803942,1771326638658,-500.0,0.00014278,2]
[405803944,1771326638670,-500.0,0.00014278,2]
[405803946,1771326638679,-500.0,0.00014278,2]
[405803948,1771326638688,-500.0,0.00014278,2]
[405803950,1771326638697,-500.0,0.00014278,2]
[405803952,1771326638707,-500.0,0.00014278,2]
[405803954,1771326638717,-622.23907666,0.00014278,2]
[405803956,1771326638726,-198.88761539,0.00014278,2]
[405803958,1771326638735,-500.0,0.00014278,2]
[405803960,1771326638744,-500.0,0.00014278,2]
[405803962,1771326638754,-500.0,0.00014278,2]
[405803964,1771326638763,-500.0,0.00014278,2]
[405803966,1771326638772,-500.0,0.00014278,2]
[405803968,1771326638781,-500.0,0.00014278,2]
[405803970,1771326638791,-500.0,0.00014278,2]
[405803972,1771326638800,-500.0,0.00014278,2]
[405803974,1771326638809,-500.0,0.00014278,2]
[405803976,1771326638818,-500.0,0.00014278,2]
[405803978,1771326638827,-500.0,0.00014278,2]
[405803980,1771326638837,-500.0,0.00014278,2]
[405803982,1771326638846,-500.0,0.00014278,2]
[405803984,1771326638855,-500.0,0.00014278,2]
[405803986,1771326638864,-500.0,0.00014278,2]
[405803988,1771326638873,-500.0,0.00014278,2]
[405803990,1771326638882,-500.0,0.00014278,2]
[405803992,1771326638891,-500.0,0.00014278,2]
[405803994,1771326638901,-500.0,0.00014278,2]
[405803996,1771326638910,-509.87887845,0.00014278,2]
[405803998,1771326638919,-500.0,0.00014278,2]
[405804000,1771326638928,-500.0,0.00014278,2]
[405804002,1771326638941,-500.0,0.00014278,2]
[405804004,1771326638950,-500.0,0.00014278,2]
[405804005,1771326638959,-500.0,0.00014278,2]
[405804007,1771326638968,-500.0,0.00014278,2]
[405804009,1771326638978,-500.0,0.00014278,2]
[405804011,1771326638988,-500.0,0.00014278,2]
[405804013,1771326638998,-500.0,0.00014278,2]
[405804016,1771326639008,-500.0,0.00014278,2]
[405804017,1771326639019,-500.0,0.00014278,2]
[405804019,1771326639029,-500.0,0.00014278,2]
[405804021,1771326639039,-500.0,0.00014278,2]
[405804023,1771326639048,-500.0,0.00014278,2]
[405804025,1771326639058,-500.0,0.00014278,2]
[405804027,1771326639067,-500.0,0.00014278,2]
[405804030,1771326639077,-500.0,0.00014278,2]
[405804031,1771326639086,-500.0,0.00014278,2]
[405804034,1771326639096,-500.0,0.00014278,2]
[405804036,1771326639109,-500.0,0.00014278,2]
[405804038,1771326639119,-500.0,0.00014278,2]
[405804039,1771326639129,-500.0,0.00014278,2]
[405804041,1771326639140,-500.0,0.00014278,2]
[405804044,1771326639149,-500.0,0.00014278,2]
[405804045,1771326639159,-500.0,0.00014278,2]
[405804048,1771326639168,-500.0,0.00014278,2]
[405804049,1771326639178,-500.0,0.00014278,2]
[405804051,1771326639187,-500.0,0.00014278,2]
[405804054,1771326639196,-500.0,0.00014278,2]
[405804055,1771326639206,-500.0,0.00014278,2]
[405804057,1771326639215,-565.76802483,0.00014278,2]
[405804059,1771326639224,-500.0,0.00014279,2]
[405804061,1771326639234,-523.81410912,0.00014279,2]
[405804062,1771326639243,-490.0,0.00014282,2]
[405804063,1771326639254,-500.0,0.00014283,2]
[405804064,1771326639263,-500.0,0.00014283,2]
[405804065,1771326639274,-343.19328391,0.00014283,2]
[405804066,1771326639284,-458.45832785,0.00014283,2]
[405804067,1771326639294,-500.0,0.00014283,2]
[405804068,1771326639305,-500.0,0.00014283,2]
[405804069,1771326639314,-500.0,0.00014283,2]
[405804071,1771326639323,-500.0,0.00014283,2]
[405804073,1771326639333,-513.44298,0.00014283,2]
[405804075,1771326639342,-500.0,0.00014283,2]
[405804077,1771326639351,-500.0,0.00014283,2]
[405804079,1771326639361,-500.0,0.00014283,2]
[405804081,1771326639370,-500.0,0.00014283,2]
[405804083,1771326639379,-500.0,0.00014283,2]
[405804085,1771326639389,-500.0,0.00014283,2]
[405804087,1771326639398,-377.70784865,0.00014283,2]
[405804089,1771326639408,-8831.7839845,0.00014297,2]
[405804091,1771326639418,-500.0,0.00014301,2]
[405804093,1771326639427,-2000.0,0.00014301,2]
[405804095,1771326639437,-2000.0,0.00014301,2]
[405804097,1771326639446,-2000.0,0.00014301,2]
[405804099,1771326639455,-2060.78113974,0.00014301,2]
[405804101,1771326639464,-1380.220797,0.00014326,2]
[405804103,1771326639474,-527.57233637,0.0001433,2]
[405804105,1771326639484,-174.108758,0.00014331,2]
[405804107,1771326639494,-33538.94154137,0.00014331,2]
[405804441,1771326643532,-1283.69329723,0.00014331,2]
[405804442,1771326643541,-500.0,0.00014334,2]
[405804443,1771326643550,-505.45120537,0.00014389,2]
[405804444,1771326643559,-500.0,0.00014394,2]
[405804445,1771326643569,-503.74413515,0.00014394,2]
[405804447,1771326643578,-501.94541573,0.00014394,2]
[405804449,1771326643587,-4768.18330412,0.00014499,2]
[405804460,1771326643688,-405.18282192,0.00014499,2]
[405804711,1771326646181,-3826.63387396,0.00014499,2]
[405804714,1771326646191,-13925.0,0.000145,2]
[405804716,1771326646200,-500.0,0.00014575,2]
[405804718,1771326646211,-443.04679506,0.00014596,2]
[405804720,1771326646220,-797.4842311,0.00014596,2]
[405804722,1771326646229,-1417.74974419,0.00014596,2]
[405804724,1771326646239,-2215.23397529,0.00014596,2]
[405804726,1771326646248,-411.11392459,0.00014596,2]
[405804728,1771326646258,-740.00506427,0.00014596,2]
[405804730,1771326646267,-1315.5645587,0.00014596,2]
[405804732,1771326646276,-500.0,0.00014608,2]
[405804734,1771326646286,-500.0,0.00014608,2]
[405804736,1771326646294,-250.0,0.00014608,2]
[405804738,1771326646303,-174.61919141,0.00014608,2]
[405804740,1771326646313,-500.0,0.00014608,2]
[405804742,1771326646322,-250.0,0.00014608,2]
[405804744,1771326646331,-181.08010149,0.00014608,2]
[405804745,1771326646341,-500.0,0.00014608,2]
[405804748,1771326646350,-250.0,0.00014608,2]
[405804750,1771326646360,-220.80658013,0.00014608,2]
[405804751,1771326646369,-500.0,0.00014608,2]
[405804754,1771326646378,-187.78006525,0.00014608,2]
[405804755,1771326646387,-500.0,0.00014608,2]
[405804757,1771326646396,-194.72792766,0.00014608,2]
[405804760,1771326646406,-273.32182778,0.00014608,2]
[405804761,1771326646415,-500.0,0.00014608,2]
[405804763,1771326646424,-201.93286099,0.00014608,2]
[405804765,1771326646433,-500.0,0.00014608,2]
[405804767,1771326646443,-282.56551004,0.00014608,2]
[405804769,1771326646452,-500.0,0.00014608,2]
[405804771,1771326646462,-500.0,0.00014608,2]
[405804774,1771326646471,-500.0,0.00014608,2]
[405804775,1771326646480,-500.0,0.00014608,2]
[405804777,1771326646489,-500.0,0.00014608,2]
[405804779,1771326646498,-500.0,0.00014608,2]
[405804781,1771326646507,-250.0,0.00014608,2]
[405804783,1771326646516,-500.0,0.00014608,2]
[405804785,1771326646525,-500.0,0.00014608,2]
[405804787,1771326646535,-500.0,0.00014608,2]
[405804789,1771326646544,-260.82039511,0.00014608,2]
[405804791,1771326646553,-500.0,0.00014608,2]
[405804793,1771326646562,-500.0,0.00014608,2]
[405804795,1771326646571,-500.0,0.00014608,2]
[405804797,1771326646580,-250.0,0.00014608,2]
[405804799,1771326646589,-250.0,0.00014608,2]
[405804801,1771326646599,-250.0,0.00014608,2]
[405804803,1771326646608,-250.0,0.00014608,2]
[405804805,1771326646617,-250.0,0.00014608,2]
[405804807,1771326646627,-250.0,0.00014608,2]
[405804809,1771326646636,-250.0,0.00014608,2]
[405804811,1771326646644,-134.74054654,0.00014608,2]
[405804813,1771326646656,-260.56270923,0.00014608,2]
[405804815,1771326646665,-250.0,0.00014608,2]
[405804817,1771326646674,-198.49081668,0.0001461,2]
[405804953,1771326726794,1610.94155748,0.00014,2]
[405804955,1771326787664,240.638499,0.00013699,2]
[405804969,1771327227432,803.7175459,0.0001374,2]
[405805007,1771327832262,-404.65346766,0.00014275,2]
[405805008,1771327832272,-504.22557757,0.00014275,2]
[405805009,1771327832283,-500.0,0.00014275,2]
[405805010,1771327832292,-245.65294563,0.00014333,2]
[405805011,1771327832301,-175.0,0.00014485,2]
[405805013,1771327832310,-300.0,0.00014485,2]
[405805014,1771327832319,-571.0,0.00014485,2]
[405805015,1771327832330,-500.0,0.00014486,2]
[405805016,1771327832340,-500.0,0.00014486,2]
[405805018,1771327832349,-500.0,0.00014486,2]
[405805019,1771327832358,-500.0,0.00014486,2]
[405805020,1771327832367,-500.0,0.00014486,2]
[405805021,1771327832376,-500.0,0.00014486,2]
[405805022,1771327832387,-500.0,0.00014486,2]
[405805023,1771327832396,-180.2487863,0.00014486,2]
[405805024,1771327832405,-449.66303903,0.00014486,2]
[405805025,1771327832414,-500.0,0.00014486,2]
[405805026,1771327832423,-518.64677898,0.00014486,2]
[405805027,1771327832432,-500.0,0.00014486,2]
[405805028,1771327832442,-500.0,0.00014486,2]
[405805029,1771327832452,-500.0,0.00014486,2]
[405805030,1771327832460,-646.27159043,0.00014486,2]
[405805031,1771327832470,-500.0,0.00014486,2]
[405805032,1771327832479,-500.0,0.00014486,2]
[405805033,1771327832489,-500.0,0.00014486,2]
[405805034,1771327832498,-500.0,0.00014486,2]
[405805035,1771327832507,-500.0,0.00014486,2]
[405805036,1771327832516,-102.45647636,0.00014486,2]
[405805037,1771327832533,-397.54352364,0.00014486,2]
[405805038,1771327832543,-208.21718835,0.00014486,2]
[405805066,1771327838453,-291.78281165,0.00014486,2]
[405805068,1771327838463,-500.0,0.00014486,2]
[405805070,1771327838473,-500.0,0.00014486,2]
[405805072,1771327838482,-606.47713669,0.00014486,2]
[405805074,1771327838491,-500.0,0.00014486,2]
[405805076,1771327838501,-500.0,0.00014486,2]
[405805078,1771327838512,-411.19094551,0.00014486,2]
[405805080,1771327838521,-500.0,0.00014486,2]
[405805082,1771327838532,-500.0,0.00014486,2]
[405805084,1771327838541,-500.0,0.00014486,2]
[405805086,1771327838550,-500.0,0.00014486,2]
[405805088,1771327838560,-162.93153696,0.00014486,2]
[405805090,1771327838572,-337.06846304,0.00014486,2]
[405805092,1771327838582,-500.0,0.00014486,2]
[405805094,1771327838592,-500.0,0.00014486,2]
[405805096,1771327838601,-5970.83293283,0.00014486,2]
[405805270,1771327840725,-1409.36089585,0.00014486,2]
[405805737,1771327846318,-5251.48858787,0.00014387,2]
[405805739,1771327846330,-635.94003217,0.00014486,2]
[405805750,1771327846426,-16047.49250203,0.00014486,2]
[405805751,1771327846436,-800.0,0.00014487,2]
[405805752,1771327846445,-220.32493632,0.00014502,2]
[405805753,1771327846454,-800.0,0.00014579,2]
[405805754,1771327846463,-548.82696978,0.00014607,2]
[405805755,1771327846472,-548.00917909,0.00014607,2]
[405805756,1771327846481,-506.66164353,0.00014608,2]
[405805757,1771327846491,-2991.44610774,0.00014608,2]
[405805758,1771327846501,-4337.51673298,0.00014608,2]
[405805759,1771327846510,-268.69151093,0.00014608,2]
[405805760,1771327846519,-483.64471968,0.00014608,2]
[405805761,1771327846528,-859.81283499,0.00014608,2]
[405805762,1771327846537,-2053.51405334,0.00014608,2]
[405805763,1771327846546,-1342.11409711,0.00014608,2]
[405805764,1771327846555,-516.96037501,0.00014608,2]
[405805765,1771327846565,-57892.64715671,0.00014617,2]
[405805766,1771327901244,-43.18122705,0.00014562,2]
[405805767,1771327901284,-879.8717503,0.00014562,2]
[405805768,1771327906077,351.81490081,0.00014,2]
[405805877,1771328251691,18591.3819099,0.0001375,2]
[405805896,1771328542812,875.70402405,0.00014,2]
[405805919,1771328741136,-299.82401253,0.00014264,2]
[405805920,1771328741158,-240.73988672,0.00014282,2]
[405805921,1771328741178,-103.11968634,0.00014299,2]
[405805939,1771328956345,-84.17688366,0.00014299,2]
[405805940,1771328956368,-150.82311634,0.00014389,2]
[405806015,1771329038676,-90.20479755,0.00014389,2]
[405806016,1771329038686,-800.0,0.00014479,2]
[405806017,1771329038695,-538.95815765,0.00014556,2]
[405806018,1771329038785,-261.04184235,0.00014556,2]
[405806019,1771329038795,-300.0,0.00014561,2]
[405806020,1771329038804,-457.16781965,0.00014562,2]
[405806021,1771329038812,-1520.23149526,0.00014563,2]
[405806213,1771329040903,-20.67295974,0.00014563,2]
[405806216,1771329040935,-2296.43773825,0.00014563,2]
[405806495,1771329044073,-2896.07694019,0.00014563,2]
[405806583,1771329046534,-732.65703946,0.00014563,2]
[405806584,1771329046544,-732.68271593,0.00014563,2]
[405806652,1771329485446,240.638499,0.00013699,2]
[405806653,1771329514289,10000.0,0.00013524,2]
[405806654,1771329546532,3531.02758402,0.00014,2]
[405806661,1771329703064,-244.24,0.00014256,2]
[405806662,1771329703092,-239.74735561,0.00014328,2]
[405806663,1771329703118,-245.69,0.000144,2]
[405806664,1771329703145,-194.50884246,0.000145,2]
[405806665,1771329703172,-300.0,0.00014559,2]
[405806666,1771329703259,-664.74052908,0.0001456,2]
[405806668,1771329732624,-153.02554483,0.00014335,2]
[405806669,1771329732652,-159.49187659,0.00014335,2]
[405806670,1771329732681,-299.15135523,0.00014559,2]
[405806671,1771329732733,-0.84864477,0.00014559,2]
[405806679,1771329761938,-286.65008466,0.00014559,2]
[405806680,1771329761976,-38.36860733,0.00014559,2]
[405806692,1771329778523,10613.3713647,0.00013564,2]
[405806695,1771329791299,-286.65008466,0.0001446,2]
[405806707,1771329955141,-153.02554482,0.00014334,2]
[405806708,1771329955162,-184.00560637,0.00014334,2]
[405806709,1771329955183,-234.9524085,0.00014509,2]
[405806710,1771329955205,-21.58479887,0.00014543,2]
[405806860,1771330027090,-2345.74302349,0.00014254,2]
[405806868,1771330029105,-557.21599394,0.00014254,2]
[405806870,1771330048119,-1006.57786528,0.00014254,2]
[405806871,1771330052178,-1090.46311729,0.00014254,2]
[405806872,1771330052203,-3507.11056938,0.00014398,2]
[405806873,1771330052228,-403.88294401,0.00014543,2]
[405806874,1771330052253,-182.17501598,0.00014556,2]
[405806875,1771330052279,-300.0,0.00014559,2]
[405806876,1771330052304,-1200.0,0.0001456,2]
[405806877,1771330052328,-300.0,0.00014561,2]
[405806878,1771330052352,-300.0,0.00014561,2]
[405806879,1771330052376,-300.0,0.00014561,2]
[405806880,1771330052399,-300.0,0.00014561,2]
[405806881,1771330052423,-17116.36835334,0.00014562,2]
[405806882,1771330053179,-25000.0,0.00014562,2]
[405806883,1771330053537,-7883.63164666,0.00014562,2]
[405806884,1771330053562,-331.04424113,0.00014562,2]
[405806885,1771330053587,-525.70834982,0.00014562,2]
[405806886,1771330053618,-553.32023519,0.00014562,2]
[405806887,1771330053642,-500.0,0.00014562,2]
[405806888,1771330053668,-500.0,0.00014562,2]
[405806889,1771330053694,-500.0,0.00014562,2]
[405806890,1771330053718,-219.51693009,0.00014564,2]
[405806891,1771330053742,-500.0,0.00014564,2]
[405806892,1771330053765,-500.0,0.00014564,2]
[405806893,1771330053790,-1159.8467225,0.00014565,2]
[405806894,1771330053815,-11826.93187461,0.00014565,2]
[405806895,1771330054191,-6553.36726342,0.00014462,2]
[405806896,1771330054217,-18446.63273658,0.00014565,2]
[405806897,1771330079471,500.0,0.00013452,2]
[405806898,1771330081915,500.0,0.00013053,2]
[405806899,1771330083210,183.78,6.993e-05,2]
[405806900,1771330083553,183.78,6.993e-05,2]
[405806901,1771330083863,183.78,6.993e-05,2]
[405806903,1771330089495,5000.0,0.00014,2]